[Event "Live Chess"]
[Site "Chess.com"]
[Date "2023.05.21"]
[Round "-"]
[White "Ian-Morley"]
[Black "MarkLim1"]
[Result "0-1"]
[WhiteElo "1037"]
[BlackElo "1680"]
[TimeControl "300"]
[EndTime "0:08:28 PDT"]
[Termination "MarkLim1 won by resignation"]

1. e4 {[%clk 0:04:57.7]} 1... e6 {[%clk 0:04:58.9]} 2. d4 {[%clk 0:04:56.9]}
2... d5 {[%clk 0:04:58.5]} 3. e5 {[%clk 0:04:56.5]} 3... c5 {[%clk 0:04:57]} 4.
c3 {[%clk 0:04:56]} 4... Nc6 {[%clk 0:04:56.4]} 5. Nf3 {[%clk 0:04:55.5]} 5...
Nge7 {[%clk 0:04:56]} 6. Be2 {[%clk 0:04:54.1]} 6... Nf5 {[%clk 0:04:55.1]} 7.
Na3 {[%clk 0:04:53.5]} 7... cxd4 {[%clk 0:04:53.7]} 8. cxd4 {[%clk 0:04:52.9]}
8... Bxa3 {[%clk 0:04:52.7]} 9. bxa3 {[%clk 0:04:51.9]} 9... Qa5+ {[%clk
0:04:51.6]} 10. Qd2 {[%clk 0:04:50.3]} 10... Qb6 {[%clk 0:04:50.5]} 11. g4
{[%clk 0:04:42.1]} 11... Nfxd4 {[%clk 0:04:48]} 12. Nxd4 {[%clk 0:04:39.2]}
12... Qxd4 {[%clk 0:04:46.6]} 13. Qxd4 {[%clk 0:04:37.8]} 13... Nxd4 {[%clk
0:04:45.7]} 14. Bb2 {[%clk 0:04:35.1]} 14... Nc2+ {[%clk 0:04:44.6]} 15. Kd2
{[%clk 0:04:33.9]} 15... Nxa1 {[%clk 0:04:44.5]} 16. Rxa1 {[%clk 0:04:32.7]}
16... Bd7 {[%clk 0:04:43.9]} 17. Bd4 {[%clk 0:04:31.1]} 17... b6 {[%clk
0:04:42.5]} 18. Rc1 {[%clk 0:04:30.3]} 18... Rc8 {[%clk 0:04:41.5]} 19. Rxc8+
{[%clk 0:04:24.5]} 19... Bxc8 {[%clk 0:04:40.2]} 20. a4 {[%clk 0:04:24]} 20...
Kd7 {[%clk 0:04:37.9]} 21. a5 {[%clk 0:04:23.3]} 21... bxa5 {[%clk 0:04:35.5]}
22. Bxa7 {[%clk 0:04:22.3]} 22... Bb7 {[%clk 0:04:33.2]} 23. Bb6 {[%clk
0:04:20.7]} 23... Rc8 {[%clk 0:04:29.2]} 24. Bb5+ {[%clk 0:04:18.6]} 24... Bc6
{[%clk 0:04:28.2]} 25. Bxc6+ {[%clk 0:04:15.9]} 25... Rxc6 {[%clk 0:04:27.3]}
26. Bxa5 {[%clk 0:04:14.5]} 26... Ra6 {[%clk 0:04:26]} 27. Bc3 {[%clk 0:04:10]}
27... Rxa2+ {[%clk 0:04:24.5]} 28. Ke3 {[%clk 0:04:06.3]} 28... Kc6 {[%clk
0:04:20.1]} 29. f4 {[%clk 0:04:04.3]} 29... g6 {[%clk 0:04:18.5]} 30. h4 {[%clk
0:04:03.2]} 30... h5 {[%clk 0:04:15]} 31. f5 {[%clk 0:04:00.8]} 31... hxg4
{[%clk 0:04:12.4]} 32. fxe6 {[%clk 0:03:55.8]} 32... fxe6 {[%clk 0:04:11.3]} 33.
Be1 {[%clk 0:03:53.2]} 33... Kc5 {[%clk 0:04:04.6]} 34. Kf4 {[%clk 0:03:52.4]}
34... Ra4+ {[%clk 0:04:03.4]} 35. Kg5 {[%clk 0:03:51.4]} 35... Re4 {[%clk
0:04:02.1]} 36. Kf6 {[%clk 0:03:49.5]} 36... Rxe1 {[%clk 0:04:00.7]} 37. Kxe6
{[%clk 0:03:48.5]} 37... g3 {[%clk 0:03:59]} 38. Kf6 {[%clk 0:03:47.9]} 38... g2
{[%clk 0:03:58.1]} 0-1

[Event "Live Chess"]
[Site "Chess.com"]
[Date "2023.05.21"]
[Round "-"]
[White "LutherSullivan"]
[Black "Doge_Dandolo"]
[Result "1-0"]
[WhiteElo "2141"]
[BlackElo "1884"]
[TimeControl "300"]
[EndTime "0:08:55 PDT"]
[Termination "LutherSullivan won by checkmate"]

1. e4 {[%clk 0:04:58.9]} 1... c6 {[%clk 0:04:58.9]} 2. d4 {[%clk 0:04:57.4]}
2... d5 {[%clk 0:04:58.1]} 3. Nd2 {[%clk 0:04:56.9]} 3... dxe4 {[%clk 0:04:57]}
4. Nxe4 {[%clk 0:04:56.5]} 4... Bf5 {[%clk 0:04:56.2]} 5. Ng3 {[%clk 0:04:55.2]}
5... Bg6 {[%clk 0:04:55.4]} 6. h4 {[%clk 0:04:53.8]} 6... h6 {[%clk 0:04:54.1]}
7. Nf3 {[%clk 0:04:51.4]} 7... Nd7 {[%clk 0:04:52.8]} 8. c3 {[%clk 0:04:50.3]}
8... e6 {[%clk 0:04:50.4]} 9. h5 {[%clk 0:04:49.4]} 9... Bh7 {[%clk 0:04:49.1]}
10. Bd3 {[%clk 0:04:48.8]} 10... Bxd3 {[%clk 0:04:48]} 11. Qxd3 {[%clk
0:04:48.3]} 11... Ngf6 {[%clk 0:04:47.2]} 12. Bf4 {[%clk 0:04:45.4]} 12... Nd5
{[%clk 0:04:45]} 13. Bd2 {[%clk 0:04:38.6]} 13... Be7 {[%clk 0:04:42.9]} 14.
O-O-O {[%clk 0:04:36.4]} 14... c5 {[%clk 0:04:34.9]} 15. Ne4 {[%clk 0:03:50.8]}
15... cxd4 {[%clk 0:04:30.7]} 16. Nxd4 {[%clk 0:03:49.1]} 16... O-O {[%clk
0:04:28.7]} 17. f4 {[%clk 0:03:39.4]} 17... Nc5 {[%clk 0:04:17.5]} 18. Nxc5
{[%clk 0:03:34.5]} 18... Bxc5 {[%clk 0:04:16]} 19. g4 {[%clk 0:03:27.3]} 19...
Rc8 {[%clk 0:04:08.9]} 20. g5 {[%clk 0:03:24]} 20... Bxd4 {[%clk 0:04:01.4]} 21.
Qxd4 {[%clk 0:03:20.4]} 21... a5 {[%clk 0:03:58.9]} 22. gxh6 {[%clk 0:03:17.9]}
22... Nf6 {[%clk 0:03:53.2]} 23. Qe5 {[%clk 0:03:02.4]} 23... Qd5 {[%clk
0:03:48.9]} 24. hxg7 {[%clk 0:02:59.6]} 24... Kxg7 {[%clk 0:03:31.9]} 25. Rdg1+
{[%clk 0:02:54.8]} 25... Kh7 {[%clk 0:03:30.6]} 26. Qxf6 {[%clk 0:02:52.8]}
26... Qxa2 {[%clk 0:03:27.7]} 27. Qg7# {[%clk 0:02:50.1]} 1-0

[Event "Live Chess"]
[Site "Chess.com"]
[Date "2023.05.21"]
[Round "-"]
[White "Supertromp"]
[Black "martynstanley"]
[Result "1-0"]
[WhiteElo "2133"]
[BlackElo "988"]
[TimeControl "300"]
[EndTime "0:09:04 PDT"]
[Termination "Supertromp won by checkmate"]

1. e4 {[%clk 0:04:59.1]} 1... e6 {[%clk 0:04:59.4]} 2. d4 {[%clk 0:04:56.5]}
2... d5 {[%clk 0:04:58.6]} 3. Bd3 {[%clk 0:04:54.9]} 3... c5 {[%clk 0:04:57.8]}
4. exd5 {[%clk 0:04:51.7]} 4... exd5 {[%clk 0:04:56.5]} 5. Nf3 {[%clk
0:04:50.6]} 5... Nc6 {[%clk 0:04:55.6]} 6. O-O {[%clk 0:04:48.8]} 6... b6 {[%clk
0:04:53.2]} 7. Re1+ {[%clk 0:04:44.2]} 7... Nge7 {[%clk 0:04:51.6]} 8. dxc5
{[%clk 0:04:28.4]} 8... bxc5 {[%clk 0:04:49.6]} 9. Bb5 {[%clk 0:04:27.8]} 9...
Bb7 {[%clk 0:04:48.2]} 10. Nc3 {[%clk 0:04:24.3]} 10... Qc7 {[%clk 0:04:46.4]}
11. Nxd5 {[%clk 0:04:22.8]} 11... Qd7 {[%clk 0:04:44.6]} 12. Ne5 {[%clk
0:04:13.6]} 12... Kd8 {[%clk 0:04:43]} 13. Nxd7 {[%clk 0:04:10.7]} 13... Kxd7
{[%clk 0:04:35.8]} 14. Nxe7+ {[%clk 0:04:07.4]} 14... Kc7 {[%clk 0:04:32.6]} 15.
Nd5+ {[%clk 0:04:06.5]} 15... Kb8 {[%clk 0:04:30]} 16. Re8+ {[%clk 0:04:05.1]}
16... Bc8 {[%clk 0:04:27.9]} 17. Bxc6 {[%clk 0:04:04.1]} 17... a6 {[%clk
0:04:25.2]} 18. Bxa8 {[%clk 0:03:53.4]} 18... Kxa8 {[%clk 0:04:24.1]} 19. Rxc8+
{[%clk 0:03:53.3]} 19... Ka7 {[%clk 0:04:23.3]} 20. Ne7 {[%clk 0:03:50.1]} 20...
Kb7 {[%clk 0:04:21.1]} 21. Qd7+ {[%clk 0:03:48.1]} 21... Kb6 {[%clk 0:04:18.8]}
22. a4 {[%clk 0:03:44.2]} 22... Ka5 {[%clk 0:04:17.6]} 23. c3 {[%clk 0:03:38.7]}
23... c4 {[%clk 0:04:14.4]} 24. Bd2 {[%clk 0:03:28.8]} 24... f6 {[%clk
0:04:12.5]} 25. b4+ {[%clk 0:03:27.7]} 25... Kb6 {[%clk 0:04:10.9]} 26. a5#
{[%clk 0:03:23.7]} 1-0

[Event "Live Chess"]
[Site "Chess.com"]
[Date "2023.05.21"]
[Round "-"]
[White "profpirate4"]
[Black "Tushinskiy"]
[Result "0-1"]
[WhiteElo "1265"]
[BlackElo "2169"]
[TimeControl "300"]
[EndTime "0:09:21 PDT"]
[Termination "Tushinskiy won by checkmate"]

1. d4 {[%clk 0:04:57.6]} 1... d5 {[%clk 0:04:58.7]} 2. c4 {[%clk 0:04:56.5]}
2... c6 {[%clk 0:04:58.6]} 3. Nc3 {[%clk 0:04:55.3]} 3... e6 {[%clk 0:04:58.5]}
4. cxd5 {[%clk 0:04:50.4]} 4... exd5 {[%clk 0:04:58.4]} 5. e3 {[%clk 0:04:49.7]}
5... Nf6 {[%clk 0:04:57.1]} 6. Bd3 {[%clk 0:04:48.9]} 6... Bd6 {[%clk
0:04:56.1]} 7. Qc2 {[%clk 0:04:47.7]} 7... O-O {[%clk 0:04:54.3]} 8. Nge2 {[%clk
0:04:46.9]} 8... Bg4 {[%clk 0:04:51.9]} 9. Ng3 {[%clk 0:04:45.2]} 9... Nbd7
{[%clk 0:04:49.5]} 10. f3 {[%clk 0:04:43.4]} 10... Be6 {[%clk 0:04:46.7]} 11.
O-O {[%clk 0:04:41.6]} 11... Qc7 {[%clk 0:04:44.5]} 12. Re1 {[%clk 0:04:39.3]}
12... Bxg3 {[%clk 0:04:42.3]} 13. hxg3 {[%clk 0:04:37.9]} 13... Qxg3 {[%clk
0:04:42.2]} 14. Bd2 {[%clk 0:04:35]} 14... Rae8 {[%clk 0:04:36.4]} 15. e4 {[%clk
0:04:31.1]} 15... Bh3 {[%clk 0:04:31.3]} 16. Re2 {[%clk 0:04:18.4]} 16... dxe4
{[%clk 0:04:28.9]} 17. fxe4 {[%clk 0:04:12.9]} 17... Ng4 {[%clk 0:04:26.5]} 18.
Be1 {[%clk 0:04:02.1]} 18... Qh2+ {[%clk 0:04:23.9]} 19. Kf1 {[%clk 0:03:55.2]}
19... Qh1# {[%clk 0:04:22.4]} 0-1

[Event "Live Chess"]
[Site "Chess.com"]
[Date "2023.05.21"]
[Round "-"]
[White "nigelst"]
[Black "AttackingSnowLeopard"]
[Result "0-1"]
[WhiteElo "1698"]
[BlackElo "2192"]
[TimeControl "300"]
[EndTime "0:09:24 PDT"]
[Termination "AttackingSnowLeopard won by resignation"]

1. e4 {[%clk 0:04:58.2]} 1... e5 {[%clk 0:04:59.2]} 2. Nf3 {[%clk 0:04:57]} 2...
Nc6 {[%clk 0:04:58.8]} 3. Bb5 {[%clk 0:04:55.4]} 3... a6 {[%clk 0:04:57.8]} 4.
Bxc6 {[%clk 0:04:54.1]} 4... dxc6 {[%clk 0:04:56.6]} 5. O-O {[%clk 0:04:53.7]}
5... Bg4 {[%clk 0:04:55.9]} 6. h3 {[%clk 0:04:52]} 6... h5 {[%clk 0:04:53.8]} 7.
d3 {[%clk 0:04:50.7]} 7... Qf6 {[%clk 0:04:52.5]} 8. Be3 {[%clk 0:04:49.1]} 8...
Bxf3 {[%clk 0:04:49.6]} 9. Qxf3 {[%clk 0:04:47.6]} 9... Qxf3 {[%clk 0:04:48.9]}
10. gxf3 {[%clk 0:04:46.6]} 10... Ne7 {[%clk 0:04:48.6]} 11. Nd2 {[%clk
0:04:44.7]} 11... Ng6 {[%clk 0:04:47.7]} 12. Kh2 {[%clk 0:04:40.5]} 12... f6
{[%clk 0:04:46.8]} 13. Rg1 {[%clk 0:04:34.1]} 13... Kf7 {[%clk 0:04:44.4]} 14.
Rg2 {[%clk 0:04:24.1]} 14... Rd8 {[%clk 0:04:35.2]} 15. Rag1 {[%clk 0:04:21.6]}
15... Nh4 {[%clk 0:04:34.8]} 16. Rg3 {[%clk 0:04:19.8]} 16... g5 {[%clk
0:04:34.4]} 17. Nc4 {[%clk 0:04:02.5]} 17... b6 {[%clk 0:04:28.4]} 18. Nxe5+
{[%clk 0:04:00.5]} 18... fxe5 {[%clk 0:04:23.7]} 19. Bxg5 {[%clk 0:03:58.6]}
19... Be7 {[%clk 0:04:23.1]} 20. Bxh4 {[%clk 0:03:42.6]} 20... Bxh4 {[%clk
0:04:21.5]} 21. Rg7+ {[%clk 0:03:41.1]} 21... Ke6 {[%clk 0:04:19.4]} 22. Rxc7
{[%clk 0:03:31.8]} 22... Rhg8 {[%clk 0:04:17.1]} 23. Rxc6+ {[%clk 0:03:26.7]}
23... Kd7 {[%clk 0:04:15.5]} 24. Rxb6 {[%clk 0:03:20.1]} 24... Bxf2 {[%clk
0:04:13.2]} 25. Rgg6 {[%clk 0:03:10.2]} 25... Bxb6 {[%clk 0:04:11]} 26. Rxb6
{[%clk 0:03:07.9]} 26... Rb8 {[%clk 0:04:10.6]} 0-1

[Event "Live Chess"]
[Site "Chess.com"]
[Date "2023.05.21"]
[Round "-"]
[White "elephantgerrald"]
[Black "Jo1ts"]
[Result "1-0"]
[WhiteElo "679"]
[BlackElo "826"]
[TimeControl "300"]
[EndTime "0:09:35 PDT"]
[Termination "elephantgerrald won by checkmate"]

1. e4 {[%clk 0:04:58.9]} 1... d5 {[%clk 0:04:58]} 2. exd5 {[%clk 0:04:56.3]}
2... Qxd5 {[%clk 0:04:56.9]} 3. d4 {[%clk 0:04:55.1]} 3... Nc6 {[%clk
0:04:50.5]} 4. c3 {[%clk 0:04:50.5]} 4... e5 {[%clk 0:04:46.2]} 5. dxe5 {[%clk
0:04:40.1]} 5... Qxd1+ {[%clk 0:04:44.8]} 6. Kxd1 {[%clk 0:04:38.2]} 6... Nxe5
{[%clk 0:04:42.8]} 7. Bf4 {[%clk 0:04:36]} 7... Bd6 {[%clk 0:04:41.9]} 8. Nd2
{[%clk 0:04:27.9]} 8... Nf6 {[%clk 0:04:36.9]} 9. Bxe5 {[%clk 0:04:26.4]} 9...
Bxe5 {[%clk 0:04:35.4]} 10. Ngf3 {[%clk 0:04:22.7]} 10... Bf4 {[%clk 0:04:30.9]}
11. g3 {[%clk 0:04:20.9]} 11... Bg5 {[%clk 0:04:26.2]} 12. Nxg5 {[%clk
0:04:19.2]} 12... h6 {[%clk 0:04:21.3]} 13. Ngf3 {[%clk 0:04:15.4]} 13... Bg4
{[%clk 0:04:17]} 14. Bg2 {[%clk 0:04:13.7]} 14... O-O {[%clk 0:04:13.6]} 15. h3
{[%clk 0:04:10.4]} 15... Bf5 {[%clk 0:04:05.1]} 16. g4 {[%clk 0:04:07.9]} 16...
Bh7 {[%clk 0:04:03.6]} 17. Ne5 {[%clk 0:03:57]} 17... Rfe8 {[%clk 0:03:59.7]}
18. f4 {[%clk 0:03:53]} 18... Rad8 {[%clk 0:03:51.4]} 19. Bxb7 {[%clk
0:03:49.2]} 19... Nd7 {[%clk 0:03:47.8]} 20. Nxd7 {[%clk 0:03:47]} 20... Rxd7
{[%clk 0:03:46.6]} 21. Bc6 {[%clk 0:03:45.8]} 21... Rdd8 {[%clk 0:03:39]} 22.
Bxe8 {[%clk 0:03:44.2]} 22... Rxe8 {[%clk 0:03:38.9]} 23. Re1 {[%clk 0:03:40.9]}
23... Rd8 {[%clk 0:03:36.7]} 24. Kc1 {[%clk 0:03:36.7]} 24... g6 {[%clk
0:03:35.9]} 25. Nc4 {[%clk 0:03:34.5]} 25... h5 {[%clk 0:03:30.7]} 26. Kc2
{[%clk 0:03:31.4]} 26... hxg4 {[%clk 0:03:26.2]} 27. hxg4 {[%clk 0:03:30]} 27...
f6 {[%clk 0:03:13]} 28. Kb3 {[%clk 0:03:25.6]} 28... g5 {[%clk 0:03:12]} 29.
fxg5 {[%clk 0:03:22.5]} 29... fxg5 {[%clk 0:03:11.5]} 30. Re7 {[%clk 0:03:16.5]}
30... Rc8 {[%clk 0:03:08.3]} 31. Rae1 {[%clk 0:03:11]} 31... Bg6 {[%clk
0:03:03.4]} 32. Ne5 {[%clk 0:03:08.3]} 32... Bh7 {[%clk 0:02:54.9]} 33. Nc6
{[%clk 0:03:03.9]} 33... a6 {[%clk 0:02:50.2]} 34. Re8+ {[%clk 0:03:01.1]} 34...
Rxe8 {[%clk 0:02:45.1]} 35. Rxe8+ {[%clk 0:02:59.5]} 35... Kg7 {[%clk
0:02:44.5]} 36. Re7+ {[%clk 0:02:58.1]} 36... Kg6 {[%clk 0:02:42.9]} 37. Rxc7
{[%clk 0:02:56.1]} 37... Bg8+ {[%clk 0:02:38.9]} 38. c4 {[%clk 0:02:50.6]} 38...
Be6 {[%clk 0:02:33.7]} 39. Ne7+ {[%clk 0:02:44.8]} 39... Kf6 {[%clk 0:02:30.7]}
40. a4 {[%clk 0:02:40.6]} 40... Bxg4 {[%clk 0:02:28.5]} 41. Nd5+ {[%clk
0:02:38.1]} 41... Ke6 {[%clk 0:02:25.3]} 42. Re7+ {[%clk 0:02:36.2]} 42... Kd6
{[%clk 0:02:20.1]} 43. Rg7 {[%clk 0:02:28.9]} 43... Bd1+ {[%clk 0:02:15]} 44.
Kb4 {[%clk 0:02:25.7]} 44... g4 {[%clk 0:02:13]} 45. c5+ {[%clk 0:02:22.9]}
45... Kxd5 {[%clk 0:02:11.6]} 46. Rd7+ {[%clk 0:02:20.3]} 46... Kc6 {[%clk
0:02:10.6]} 47. Rxd1 {[%clk 0:02:18.6]} 47... g3 {[%clk 0:02:06.8]} 48. Rd6+
{[%clk 0:02:16.9]} 48... Kb7 {[%clk 0:02:04.9]} 49. c6+ {[%clk 0:02:11.5]} 49...
Kc7 {[%clk 0:02:04]} 50. Rg6 {[%clk 0:02:09.7]} 50... g2 {[%clk 0:01:55.7]} 51.
Rxg2 {[%clk 0:02:07.8]} 51... Kxc6 {[%clk 0:01:55.6]} 52. Rd2 {[%clk 0:02:05.1]}
52... Kb6 {[%clk 0:01:54.1]} 53. Kc4 {[%clk 0:02:04.1]} 53... Ka5 {[%clk
0:01:51]} 54. b3 {[%clk 0:01:59.7]} 54... Kb6 {[%clk 0:01:47.2]} 55. b4 {[%clk
0:01:58.1]} 55... a5 {[%clk 0:01:45]} 56. b5 {[%clk 0:01:53.6]} 56... Kb7 {[%clk
0:01:42.4]} 57. Rd6 {[%clk 0:01:50.6]} 57... Ka7 {[%clk 0:01:41.3]} 58. b6+
{[%clk 0:01:48.9]} 58... Kb7 {[%clk 0:01:40.4]} 59. Kc5 {[%clk 0:01:47.7]} 59...
Ka6 {[%clk 0:01:32.4]} 60. Rc6 {[%clk 0:01:27.5]} 60... Kb7 {[%clk 0:01:30.7]}
61. Kb5 {[%clk 0:01:26.2]} 61... Kb8 {[%clk 0:01:28.7]} 62. Ka6 {[%clk
0:01:24.1]} 62... Ka8 {[%clk 0:01:22.4]} 63. Rc8# {[%clk 0:01:22.5]} 1-0

[Event "Live Chess"]
[Site "Chess.com"]
[Date "2023.05.21"]
[Round "-"]
[White "MJMykh"]
[Black "Stanbad1"]
[Result "0-1"]
[WhiteElo "1025"]
[BlackElo "2389"]
[TimeControl "300"]
[EndTime "0:09:38 PDT"]
[Termination "Stanbad1 won by checkmate"]

1. e4 {[%clk 0:04:58.9]} 1... e6 {[%clk 0:04:58.4]} 2. Nf3 {[%clk 0:04:57.6]}
2... d5 {[%clk 0:04:57.6]} 3. exd5 {[%clk 0:04:56.2]} 3... exd5 {[%clk
0:04:56.4]} 4. Nc3 {[%clk 0:04:55.9]} 4... Nf6 {[%clk 0:04:54.6]} 5. Bb5+ {[%clk
0:04:54.6]} 5... c6 {[%clk 0:04:53.6]} 6. Bd3 {[%clk 0:04:53.1]} 6... Bd6 {[%clk
0:04:51]} 7. O-O {[%clk 0:04:51.9]} 7... O-O {[%clk 0:04:49.2]} 8. h3 {[%clk
0:04:51.1]} 8... Nbd7 {[%clk 0:04:47.3]} 9. a3 {[%clk 0:04:48.8]} 9... Nc5
{[%clk 0:04:46.5]} 10. Qe2 {[%clk 0:04:46.7]} 10... Re8 {[%clk 0:04:44.9]} 11.
Qd1 {[%clk 0:04:45.6]} 11... Nxd3 {[%clk 0:04:43.7]} 12. cxd3 {[%clk 0:04:45.5]}
12... Bf5 {[%clk 0:04:43]} 13. Qc2 {[%clk 0:04:43.2]} 13... Qb6 {[%clk
0:04:40.8]} 14. Na4 {[%clk 0:04:34.4]} 14... Qb5 {[%clk 0:04:38.4]} 15. Rd1
{[%clk 0:04:10.3]} 15... Bxd3 {[%clk 0:04:35.3]} 16. Qc3 {[%clk 0:03:49.7]}
16... Qxa4 {[%clk 0:04:31.7]} 17. b3 {[%clk 0:03:45]} 17... Qe4 {[%clk
0:04:29.4]} 18. Bb2 {[%clk 0:03:31.9]} 18... Be2 {[%clk 0:04:25.9]} 19. Re1
{[%clk 0:03:28.3]} 19... Bxf3 {[%clk 0:04:24.2]} 20. Rxe4 {[%clk 0:03:27.3]}
20... Bxe4 {[%clk 0:04:23.1]} 21. Re1 {[%clk 0:03:18.5]} 21... Be5 {[%clk
0:03:46.2]} 22. d4 {[%clk 0:03:01.2]} 22... Bd6 {[%clk 0:03:43.8]} 23. f3 {[%clk
0:02:44]} 23... Bg6 {[%clk 0:03:34.9]} 24. Rxe8+ {[%clk 0:02:42.2]} 24... Rxe8
{[%clk 0:03:26.6]} 25. g4 {[%clk 0:02:31.5]} 25... h6 {[%clk 0:03:24.6]} 26. Kf2
{[%clk 0:02:28.3]} 26... Bf4 {[%clk 0:03:22]} 27. Qa5 {[%clk 0:02:20.9]} 27...
a6 {[%clk 0:03:16.7]} 28. Qb6 {[%clk 0:02:16]} 28... Re7 {[%clk 0:03:14.4]} 29.
Qc5 {[%clk 0:02:08.4]} 29... Rd7 {[%clk 0:03:08.5]} 30. Qa7 {[%clk 0:01:53.1]}
30... Kh7 {[%clk 0:03:04.4]} 31. Qc5 {[%clk 0:01:47.6]} 31... h5 {[%clk
0:02:58.2]} 32. a4 {[%clk 0:01:37.8]} 32... h4 {[%clk 0:02:56]} 33. b4 {[%clk
0:01:28.7]} 33... Bg3+ {[%clk 0:02:53.4]} 34. Kg2 {[%clk 0:01:25.7]} 34... Rd8
{[%clk 0:02:51.6]} 35. Qc3 {[%clk 0:01:11.5]} 35... Re8 {[%clk 0:02:47.4]} 36.
Qd2 {[%clk 0:01:08.4]} 36... Re1 {[%clk 0:02:43.8]} 37. a5 {[%clk 0:01:01.6]}
37... Ne4 {[%clk 0:02:41.8]} 38. Qc2 {[%clk 0:00:37.5]} 38... Nd6 {[%clk
0:02:35.1]} 39. Qb3 {[%clk 0:00:29.1]} 39... Nc4 {[%clk 0:02:32]} 40. Bc3 {[%clk
0:00:23.2]} 40... Re2+ {[%clk 0:02:29.1]} 41. Kf1 {[%clk 0:00:21.3]} 41... Bd3
{[%clk 0:02:27]} 42. Kg1 {[%clk 0:00:18.9]} 42... Ne3 {[%clk 0:02:25.2]} 43. Kh1
{[%clk 0:00:17.2]} 43... Bf4 {[%clk 0:02:18.9]} 44. Kg1 {[%clk 0:00:15.8]} 44...
Nf1 {[%clk 0:02:15.9]} 45. Kh1 {[%clk 0:00:13.2]} 45... Ng3+ {[%clk 0:02:14.9]}
46. Kg1 {[%clk 0:00:11.9]} 46... Bc4 {[%clk 0:02:13.3]} 47. Qa3 {[%clk
0:00:08.3]} 47... Be3# {[%clk 0:02:12.7]} 0-1

[Event "Live Chess"]
[Site "Chess.com"]
[Date "2023.05.21"]
[Round "-"]
[White "JohanKjeldahl"]
[Black "Duke_of_Bebington"]
[Result "1-0"]
[WhiteElo "1882"]
[BlackElo "1582"]
[TimeControl "300"]
[EndTime "0:09:38 PDT"]
[Termination "JohanKjeldahl won by resignation"]

1. e4 {[%clk 0:04:55.6]} 1... e5 {[%clk 0:04:58.7]} 2. Nf3 {[%clk 0:04:52.8]}
2... Nf6 {[%clk 0:04:57.5]} 3. d4 {[%clk 0:04:51.3]} 3... Nxe4 {[%clk 0:04:55]}
4. Bd3 {[%clk 0:04:49.2]} 4... d5 {[%clk 0:04:53.4]} 5. Nxe5 {[%clk 0:04:48]}
5... Bd6 {[%clk 0:04:51.1]} 6. O-O {[%clk 0:04:45.5]} 6... O-O {[%clk
0:04:49.9]} 7. c4 {[%clk 0:04:42.7]} 7... c6 {[%clk 0:04:48.4]} 8. Nc3 {[%clk
0:04:40.2]} 8... Nxc3 {[%clk 0:04:40.4]} 9. bxc3 {[%clk 0:04:37.9]} 9... Be6
{[%clk 0:04:30.9]} 10. cxd5 {[%clk 0:04:31.8]} 10... cxd5 {[%clk 0:04:27.4]} 11.
f4 {[%clk 0:04:29.2]} 11... f5 {[%clk 0:04:19.1]} 12. Qe2 {[%clk 0:04:22.1]}
12... Re8 {[%clk 0:04:15.5]} 13. a4 {[%clk 0:04:12.7]} 13... Nc6 {[%clk
0:04:13.7]} 14. Ba3 {[%clk 0:04:03.8]} 14... Rc8 {[%clk 0:04:05.2]} 15. Bxd6
{[%clk 0:03:55.8]} 15... Qxd6 {[%clk 0:04:03.7]} 16. Rab1 {[%clk 0:03:53.1]}
16... b6 {[%clk 0:03:59.8]} 17. Bb5 {[%clk 0:03:49]} 17... Bd7 {[%clk
0:03:48.4]} 18. Qd3 {[%clk 0:03:43.4]} 18... g6 {[%clk 0:03:27.7]} 19. Rbe1
{[%clk 0:03:40.1]} 19... Re7 {[%clk 0:03:07.2]} 20. Nxc6 {[%clk 0:03:34.6]}
20... Bxc6 {[%clk 0:03:04.4]} 21. Re5 {[%clk 0:03:23.9]} 21... Rxe5 {[%clk
0:03:01.5]} 22. fxe5 {[%clk 0:03:21.1]} 22... Qe6 {[%clk 0:02:59.8]} 23. Rb1
{[%clk 0:02:59.9]} 23... Bb7 {[%clk 0:02:43.5]} 24. Rc1 {[%clk 0:02:41.5]} 24...
Bc6 {[%clk 0:02:33.7]} 25. Ba6 {[%clk 0:02:33.2]} 25... Rc7 {[%clk 0:02:29.3]}
26. c4 {[%clk 0:02:25.3]} 26... Bxa4 {[%clk 0:02:27.3]} 27. Ra1 {[%clk
0:02:10.3]} 27... Bc6 {[%clk 0:02:17.1]} 28. cxd5 {[%clk 0:02:07.3]} 28... Qxd5
{[%clk 0:02:15.4]} 29. Bc4 {[%clk 0:02:03.8]} 1-0

[Event "Live Chess"]
[Site "Chess.com"]
[Date "2023.05.21"]
[Round "-"]
[White "Biranidun"]
[Black "JoeRoot66"]
[Result "1-0"]
[WhiteElo "2572"]
[BlackElo "1937"]
[TimeControl "300"]
[EndTime "0:09:48 PDT"]
[Termination "Biranidun won by resignation"]

1. e4 {[%clk 0:04:59]} 1... c6 {[%clk 0:04:59.1]} 2. d4 {[%clk 0:04:57.9]} 2...
d5 {[%clk 0:04:59]} 3. e5 {[%clk 0:04:57.2]} 3... Bf5 {[%clk 0:04:58.8]} 4. Nf3
{[%clk 0:04:56.5]} 4... e6 {[%clk 0:04:58.1]} 5. Be2 {[%clk 0:04:56.2]} 5... c5
{[%clk 0:04:57.1]} 6. Be3 {[%clk 0:04:54.6]} 6... Qb6 {[%clk 0:04:50.1]} 7. Nc3
{[%clk 0:04:53.6]} 7... Nc6 {[%clk 0:04:14.4]} 8. O-O {[%clk 0:04:52]} 8... c4
{[%clk 0:04:03.1]} 9. Rb1 {[%clk 0:04:49.8]} 9... Bb4 {[%clk 0:03:58.4]} 10. Nh4
{[%clk 0:04:48.1]} 10... Bg6 {[%clk 0:03:54]} 11. a3 {[%clk 0:04:44.8]} 11...
Bxc3 {[%clk 0:03:39.7]} 12. bxc3 {[%clk 0:04:44.7]} 12... Qc7 {[%clk 0:03:37.1]}
13. f4 {[%clk 0:04:43.9]} 13... Nge7 {[%clk 0:03:30.6]} 14. g4 {[%clk 0:04:43]}
14... h5 {[%clk 0:03:21.3]} 15. f5 {[%clk 0:04:42.1]} 15... hxg4 {[%clk
0:03:20.3]} 16. Nxg6 {[%clk 0:04:34.8]} 16... fxg6 {[%clk 0:03:13.5]} 17. fxe6
{[%clk 0:04:32]} 17... Nf5 {[%clk 0:03:09]} 18. Bg5 {[%clk 0:04:28.9]} 18... g3
{[%clk 0:02:39.7]} 19. h4 {[%clk 0:04:09.8]} 19... Nxe5 {[%clk 0:02:09.4]} 20.
Rxf5 {[%clk 0:04:06.8]} 20... gxf5 {[%clk 0:01:57.7]} 21. dxe5 {[%clk
0:04:06.2]} 21... g6 {[%clk 0:01:49.2]} 22. Qxd5 {[%clk 0:03:59.7]} 1-0